bitfinex/quotes_ETHUSD_20250518
["timestamp","ask_amount","ask_price","bid_price","bid_amount"]
[1747547368768,9.6536138,2505.5,2505.2,0.27667771]
[1747547369103,8.5599138,2505.5,2505.2,0.27667771]
[1747547369604,8.5599138,2505.5,2505.1,5.11585527]
[1747547369789,8.5599138,2505.5,2505.1,1.124]
[1747547371094,16.1539138,2505.5,2505.2,3.99169582]
[1747547371801,8.5599138,2505.5,2505.3,3.99152098]
[1747547372014,8.5599138,2505.5,2505.4,1.0558]
[1747547372375,8.5599138,2505.5,2505.3,3.99152098]
[1747547372576,8.5599138,2505.5,2505.4,11.99137862]
[1747547375815,8.5599138,2505.5,2505.4,13.12877862]
[1747547377677,8.5599138,2505.5,2505.4,19.18877862]
[1747547379215,8.5599138,2505.5,2505.4,18.05137862]
[1747547379915,8.5599138,2505.5,2505.4,18.60137862]
[1747547380083,8.5599138,2505.5,2505.4,18.05137862]
[1747547380980,8.5599138,2505.5,2505.4,18.42766673]
[1747547383181,8.5599138,2505.5,2505.4,20.11656673]
[1747547384553,8.5599138,2505.5,2505.4,19.56656673]
[1747547386327,8.5599138,2505.5,2505.4,20.11656673]
[1747547389116,8.5599138,2505.5,2505.4,20.59073888]
[1747547390046,8.5599138,2505.5,2505.4,28.17973888]
[1747547390251,8.5599138,2505.5,2505.4,19.45183888]
[1747547392413,8.5599138,2505.5,2505.4,18.97766673]
[1747547393845,8.5599138,2505.5,2505.4,20.05876673]
[1747547397750,8.5599138,2505.5,2505.4,14.43628811]
[1747547397954,8.5599138,2505.5,2505.4,18.42766673]
[1747547398541,8.5599138,2505.5,2505.4,18.89865209]
[1747547398713,8.5599138,2505.5,2505.4,12.83865209]
[1747547404272,8.5599138,2505.5,2505.4,12.36766673]
[1747547404644,8.5599138,2505.5,2505.4,18.42766673]
[1747547405898,8.5599138,2505.5,2505.4,20.09576673]
[1747547406759,8.5599138,2505.5,2505.4,27.68176673]
[1747547408891,7.6025101,2505.5,2505.4,27.68176673]
[1747547410091,7.6025101,2505.5,2505.4,27.68076673]
[1747547410606,7.6025101,2505.5,2505.4,26.56266673]
[1747547411102,7.6025101,2505.5,2505.4,18.97766673]
[1747547412005,7.6025101,2505.5,2505.4,18.42766673]
[1747547413709,7.6025101,2505.5,2505.4,12.36766673]
[1747547414422,7.6025101,2505.5,2505.4,0.37628811]
[1747547414723,20.26152941,2505.5,2505.4,0.37628811]
[1747547414933,21.66320806,2505.5,2505.4,0.37628811]
[1747547415232,25.1742482,2505.5,2505.4,0.37628811]
[1747547416676,3.99137862,2505.4,2505.3,0.62902932]
[1747547416990,3.99162103,2505.3,2504.7,3.99239553]
[1747547417190,8.6728,2505.2,2504.7,3.99239553]
[1747547417396,1.0838,2505.1,2504.6,11.99261697]
[1747547417583,1.0838,2505.1,2504.5,12.4644501]
[1747547417584,5.07576927,2505.1,2504.5,12.4644501]
[1747547417779,3.99206383,2505.0,2504.6,0.37711797]
[1747547418103,0.8712,2504.9,2504.6,0.37711797]
[1747547418296,3.99249411,2504.7,2504.6,0.37711797]
[1747547418493,12.45269411,2504.7,2504.6,0.37711797]
[1747547419618,0.8712,2504.5,2504.1,8.0]
[1747547419785,7.584,2504.4,2504.1,8.0]
[1747547420436,7.584,2504.4,2504.0,8.0]
[1747547420584,20.03918049,2504.4,2503.8,0.47165916]
[1747547420786,20.03918049,2504.4,2503.9,3.99373817]
[1747547420787,16.0462,2504.4,2503.9,3.99373817]
[1747547421599,16.0462,2504.4,2503.9,3.99362213]
[1747547422122,20.03918881,2504.4,2503.9,3.99362213]
[1747547422412,7.59,2504.3,2503.9,8.0]
[1747547422618,0.8712,2504.4,2504.1,8.0]
[1747547422815,0.7987,2504.6,2504.4,8.0]
[1747547422980,0.7987,2504.6,2504.3,8.0]
[1747547423182,0.7987,2504.6,2504.3,11.99310014]
[1747547423797,0.7987,2504.6,2503.8,12.46557024]
[1747547423982,0.7987,2504.6,2504.1,3.99334613]
[1747547424209,0.7987,2504.6,2504.2,8.0]
[1747547424404,4.79138425,2504.6,2504.1,8.0]
[1747547425219,0.7987,2504.4,2504.0,8.0]
[1747547425590,0.7987,2504.4,2504.0,3.99357876]
[1747547426326,0.7987,2504.4,2504.1,3.9934471]
[1747547426691,0.7987,2504.4,2504.0,11.99351616]
[1747547427324,0.7987,2504.4,2504.0,11.99359961]
[1747547427697,0.7987,2504.4,2504.0,8.0]
[1747547427903,4.79167652,2504.4,2504.0,8.0]
[1747547428713,4.79175711,2504.4,2503.9,8.0]
[1747547429242,0.7987,2504.4,2504.3,11.99313181]
[1747547429683,0.7987,2504.4,2504.3,8.0]
[1747547431436,8.4445,2504.6,2504.3,11.99313181]
[1747547431638,8.4445,2504.6,2504.3,8.0]
[1747547432196,12.43723946,2504.6,2504.3,8.0]
[1747547432504,3.99285763,2504.5,2504.3,8.0]
[1747547432704,0.8585,2504.4,2504.0,3.9935584]
[1747547432910,0.8585,2504.4,2504.1,8.0]
[1747547433429,0.8585,2504.4,2504.0,11.99356586]
[1747547433726,0.8585,2504.4,2504.0,8.0]
[1747547434326,3.99329456,2504.2,2503.8,8.0]
[1747547434514,0.8585,2504.1,2503.6,3.99414162]
[1747547434729,8.4455,2504.1,2503.6,3.99414162]
[1747547435038,8.4455,2504.1,2503.6,3.99421898]
[1747547435244,12.43908665,2504.1,2503.5,12.2923134]
[1747547435744,8.4455,2504.1,2503.6,3.99421286]
[1747547435969,12.43898828,2504.1,2503.6,3.99421286]
[1747547436146,12.43898828,2504.1,2503.5,12.29229163]
[1747547436444,12.43898828,2504.1,2503.6,3.99423012]
[1747547436641,0.8585,2504.0,2503.4,0.47165916]
[1747547436812,4.8522048,2504.0,2503.4,4.46619236]
[1747547437162,0.8585,2503.8,2503.4,0.47165916]
[1747547437310,0.8585,2503.8,2503.4,4.46613669]
[1747547437505,0.8585,2503.8,2503.5,8.0]
[1747547438043,8.4455,2503.8,2503.6,3.99415469]
[1747547438255,7.587,2503.9,2503.7,3.99401655]
[1747547438422,7.587,2503.9,2503.6,11.99416253]
[1747547440263,7.587,2503.9,2503.7,3.99406009]
[1747547441657,7.587,2503.9,2503.8,3.99392922]
[1747547441857,8.4231,2504.0,2503.8,3.99392922]
[1747547442061,0.8351,2504.2,2503.9,3.99366768]
[1747547442364,0.8351,2504.2,2503.9,11.99366768]
[1747547442528,0.8351,2504.2,2504.0,8.0]
[1747547444130,0.8351,2504.2,2504.1,0.37754747]
[1747547445963,0.8351,2504.2,2504.1,4.37099821]
[1747547446364,7.588,2504.4,2504.1,4.37099821]
[1747547446565,8.3699,2504.4,2504.1,4.37099821]
[1747547447668,8.3699,2504.4,2504.2,0.37754747]
[1747547449468,8.3699,2504.4,2504.2,8.37754747]
[1747547450758,8.3699,2504.4,2504.2,0.37754747]
[1747547450941,8.3699,2504.4,2504.3,0.37754747]
[1747547452277,12.36287236,2504.4,2504.3,0.37754747]
[1747547452662,12.36287236,2504.4,2504.0,0.37754747]
[1747547452663,3.99333354,2504.2,2504.0,0.37754747]
[1747547452975,8.3699,2504.4,2504.0,4.37105287]
[1747547453681,8.3699,2504.4,2504.1,3.9934276]
[1747547453855,8.3699,2504.4,2504.0,4.37107442]
[1747547454176,0.7819,2504.4,2504.1,3.99343756]
[1747547454363,8.3699,2504.4,2504.2,0.37754747]
[1747547455116,12.36291472,2504.4,2504.2,0.37754747]
[1747547455284,8.3699,2504.4,2504.2,0.37754747]
[1747547455596,12.36288564,2504.4,2504.2,0.37754747]
[1747547455802,10.76385619,2504.4,2504.2,0.37754747]
[1747547456904,10.76385619,2504.4,2504.0,0.37754747]
[1747547457101,8.3699,2504.4,2504.0,0.37754747]
[1747547457703,12.36289983,2504.4,2504.1,0.37754747]
[1747547458198,0.7574,2504.2,2504.1,0.37754747]
[1747547459483,0.7574,2504.2,2504.0,0.37754747]
[1747547460715,0.7574,2504.2,2504.1,0.37754747]
[1747547462418,0.7574,2504.2,2504.0,0.37754747]
[1747547463318,0.7574,2504.2,2503.8,8.47165916]
[1747547463319,0.7574,2504.2,2504.1,0.37754747]
[1747547464820,0.7574,2504.2,2503.9,0.84920663]
[1747547465829,0.7574,2504.2,2504.0,0.37754747]
[1747547466705,7.588,2504.4,2504.0,0.37754747]
[1747547466928,1.9164861,2504.3,2504.0,0.37754747]
[1747547467131,7.588,2504.4,2504.0,0.37754747]
[1747547467298,3.99231896,2504.9,2504.1,3.99336564]
[1747547467500,3.99249425,2504.7,2504.1,3.99336564]
[1747547467798,3.99265405,2504.6,2504.1,4.37091311]
[1747547468629,19.15834184,2504.8,2504.1,0.37754747]
[1747547468630,15.166,2504.8,2504.1,0.37754747]
[1747547468826,3.99294917,2504.5,2504.1,0.37754747]
[1747547469124,3.99294917,2504.5,2504.2,0.37754747]
[1747547469306,3.99272014,2504.6,2504.2,0.37754747]
[1747547469825,0.7977,2504.5,2504.2,0.37754747]
[1747547470334,7.584,2504.4,2504.2,0.37754747]
[1747547470625,7.534,2504.4,2504.2,4.3708216]
[1747547471133,7.534,2504.4,2504.3,0.37754747]
[1747547472233,7.484,2504.4,2504.3,0.37754747]
[1747547472405,0.7977,2504.7,2504.3,4.37067928]
[1747547472608,15.165,2504.6,2504.3,0.37754747]
[1747547473430,7.584,2504.6,2504.3,4.37059897]
[1747547473598,7.584,2504.6,2504.4,3.99289599]
[1747547473794,21.955,2505.0,2504.7,3.99241626]
[1747547474130,21.955,2505.0,2504.7,4.75149035]
[1747547474323,21.955,2505.0,2504.8,3.99229671]
[1747547474722,21.955,2505.0,2504.9,0.37754747]
[1747547476539,21.955,2505.0,2504.8,0.37754747]
[1747547482013,14.371,2505.0,2504.8,0.37754747]
[1747547482542,14.371,2505.0,2504.8,4.36986855]
[1747547483247,7.583,2505.2,2504.8,4.36986855]
[1747547483547,7.583,2505.2,2504.9,3.99207521]
[1747547484510,7.583,2505.2,2505.0,3.99197278]
[1747547484924,7.582,2505.3,2505.0,3.99197278]
[1747547488661,8.4026101,2505.5,2505.0,3.99197278]
[1747547488861,15.152,2505.4,2505.0,3.99197278]
[1747547490156,15.152,2505.4,2504.9,3.9920972]
[1747547490329,19.14347667,2505.4,2505.0,8.0]
[1747547490529,15.152,2505.4,2505.0,8.0]
[1747547494360,15.152,2505.4,2505.0,3.99201228]
[1747547494968,15.152,2505.4,2504.9,11.99215462]
[1747547495965,15.152,2505.4,2505.0,0.37713351]
[1747547496165,6.64739459,2505.3,2505.0,0.37713351]
[1747547496667,0.7636,2505.2,2505.0,0.37713351]
[1747547497063,4.75536,2505.2,2505.0,0.37713351]
[1747547497446,4.75536,2505.2,2504.7,8.0]
[1747547499547,4.75536,2505.2,2504.8,0.37774873]
[1747547500665,4.75536,2505.2,2504.9,0.37774873]
[1747547501437,0.7636,2505.2,2504.9,0.37774873]
[1747547501847,7.576,2505.1,2504.9,0.37774873]
[1747547502670,7.576,2505.1,2504.9,5.15708991]
[1747547502833,7.576,2505.1,2504.9,9.16494873]
[1747547503272,4.76839576,2505.4,2504.9,5.15712]
[1747547503474,7.576,2505.2,2504.9,0.37774873]
[1747547503878,11.56773221,2505.2,2505.0,0.37774873]
[1747547505669,11.56773221,2505.2,2504.8,0.37774873]
[1747547506981,11.56773221,2505.2,2504.9,0.37774873]
[1747547508083,7.576,2505.2,2504.9,0.37774873]
[1747547508682,7.576,2505.2,2505.0,0.37774873]
[1747547510482,7.576,2505.2,2504.9,0.37774873]
[1747547512299,7.576,2505.2,2505.0,0.37774873]
[1747547513197,11.5677246,2505.2,2505.0,0.37774873]
[1747547513397,7.576,2505.2,2505.0,0.37774873]
[1747547513696,11.56772822,2505.2,2505.0,0.37774873]
[1747547514098,7.576,2505.2,2505.0,0.37774873]
[1747547514290,19.13955704,2505.3,2505.1,0.37774873]
[1747547515903,19.13955704,2505.3,2504.9,0.37774873]
[1747547516602,19.13955704,2505.3,2505.0,0.37774873]
[1747547517309,3.99175731,2505.2,2505.0,0.37774873]
[1747547518926,3.99173369,2505.2,2504.9,0.37774873]
[1747547519092,11.55973369,2505.2,2504.9,0.37774873]
[1747547520321,7.568,2505.2,2505.0,0.37774873]
[1747547520523,11.55970197,2505.2,2505.0,0.37774873]
[1747547520925,7.568,2505.2,2505.0,0.37774873]
[1747547522627,11.55969726,2505.2,2505.1,0.37774873]
[1747547523124,13.94972295,2505.2,2505.1,0.37774873]
[1747547523520,14.76642295,2505.2,2505.1,0.37774873]
[1747547524488,14.76642295,2505.2,2504.9,0.37774873]
[1747547525233,3.99188337,2505.1,2504.9,0.37774873]
[1747547525428,14.76650179,2505.2,2504.9,0.37774873]
[1747547525639,7.568,2505.0,2504.9,0.37774873]
[1747547526205,7.568,2505.0,2504.9,1.14984873]
[1747547527013,7.568,2505.0,2504.9,0.37774873]
[1747547528037,7.568,2505.0,2504.9,4.36992406]
[1747547528241,7.568,2505.0,2504.9,12.36992406]
[1747547529036,7.568,2505.0,2504.9,8.37774873]
[1747547529514,7.568,2505.0,2504.9,8.84940789]
[1747547530359,7.568,2505.2,2504.9,8.84940789]
[1747547531364,7.568,2505.2,2505.0,0.37774873]
[1747547532482,0.8167,2505.1,2505.0,0.37774873]
[1747547532837,4.80855661,2505.1,2505.0,0.37774873]
[1747547533131,7.2018672,2505.1,2505.0,0.37774873]
[1747547534859,7.2018672,2505.1,2504.8,0.37774873]
[1747547535160,4.80855661,2505.1,2504.8,0.37774873]
[1747547537335,7.568,2505.2,2504.9,8.37774873]
[1747547537336,15.131,2505.2,2504.9,8.37774873]
[1747547538829,15.131,2505.2,2505.0,0.37774873]
[1747547539967,15.13,2505.2,2505.0,0.37774873]
[1747547540473,0.8167,2505.4,2505.0,0.37774873]
[1747547540673,15.13,2505.3,2505.0,0.37774873]
[1747547541050,15.13,2505.3,2505.1,0.37774873]
[1747547541571,7.568,2505.2,2505.1,0.37774873]
[1747547543402,7.6025101,2505.5,2505.1,0.37774873]
[1747547543675,15.129,2505.4,2505.1,0.37774873]
[1747547544391,15.129,2505.4,2505.2,0.37774873]
[1747547545856,15.129,2505.4,2505.1,0.37774873]
[1747547546490,19.12038145,2505.4,2505.1,0.37774873]
[1747547546666,3.99169726,2505.2,2505.1,0.37774873]
[1747547546862,6.68326699,2505.2,2505.1,0.37774873]
[1747547547186,2.69156973,2505.2,2505.1,0.37774873]
[1747547547482,2.69156973,2505.2,2505.0,0.37774873]
[1747547548955,2.69156973,2505.2,2504.9,0.37774873]
[1747547549155,0.7795,2505.2,2504.9,0.37774873]
[1747547549355,4.7712152,2505.2,2504.9,0.37774873]
[1747547550189,4.7712152,2505.2,2505.0,0.37774873]
[1747547550488,12.3302152,2505.2,2505.0,0.37774873]
[1747547551684,3.99187537,2505.1,2504.8,0.37774873]
[1747547552389,3.99204996,2505.0,2504.8,0.37774873]
[1747547553294,3.99204996,2505.0,2504.9,0.37774873]
[1747547554291,5.62410137,2505.1,2504.7,0.37774873]
[1747547556021,3.99190634,2505.1,2504.7,0.37774873]
[1747547556310,3.99190634,2505.1,2504.8,0.37774873]
[1747547557198,8.3385,2505.2,2504.8,0.37774873]
[1747547557199,3.99201754,2505.0,2504.8,0.37774873]
[1747547557400,3.99191994,2505.1,2504.8,0.37774873]
[1747547557799,3.99191994,2505.1,2504.9,0.37774873]
[1747547558011,5.62413306,2505.1,2504.9,0.37774873]
[1747547558208,3.99201596,2505.0,2504.9,0.37774873]
[1747547558812,5.62409076,2505.1,2504.9,0.37774873]
[1747547559015,3.99201596,2505.0,2504.9,0.37774873]
[1747547559310,3.99201596,2505.0,2504.7,0.37774873]
[1747547559480,7.6025101,2505.5,2505.1,3.99180633]
[1747547559916,11.59379121,2505.5,2505.0,3.99198891]
[1747547560207,3.99138834,2505.4,2504.9,0.819]
[1747547560386,3.99159521,2505.3,2504.9,0.819]
[1747547560787,1.56417849,2505.3,2505.0,0.37774873]
[1747547560987,5.55575753,2505.3,2505.0,0.37774873]
[1747547561323,3.99185661,2505.1,2505.0,0.37774873]
[1747547563112,3.99185661,2505.1,2504.9,0.47165916]
[1747547563526,3.99201596,2505.0,2504.9,0.47165916]
[1747547563748,4.87267915,2505.0,2504.9,0.47165916]
[1747547563882,5.68617915,2505.0,2504.9,0.47165916]
[1747547565024,5.68617915,2505.0,2504.7,0.62902932]
[1747547565025,5.68617915,2505.0,2504.5,0.37774873]
[1747547565221,15.113,2504.9,2504.5,0.37774873]
[1747547566015,3.99187052,2505.1,2504.6,3.99264408]
[1747547566313,4.80522347,2505.2,2504.7,4.37014701]
[1747547566517,7.559,2505.1,2504.7,4.37014701]
[1747547567482,7.559,2505.1,2504.8,8.0]
[1747547567688,7.559,2505.1,2504.8,12.37000631]
[1747547568711,19.17194307,2505.4,2504.9,4.80866735]
[1747547568918,14.367,2505.4,2505.0,3.9919192]
[1747547569103,21.926,2505.4,2505.2,0.8165]
[1747547569918,21.926,2505.4,2505.3,0.37774873]
[1747547574726,7.559,2505.4,2505.3,0.37774873]
[1747547576742,7.559,2505.4,2505.1,0.37774873]
[1747547578646,15.1615101,2505.5,2505.2,3.99162621]
[1747547579214,15.1615101,2505.5,2505.1,4.36953979]
[1747547579827,15.1615101,2505.5,2505.2,0.37774873]
[1747547580047,15.1615101,2505.5,2505.2,4.36944587]
[1747547580198,15.1615101,2505.5,2505.2,0.37774873]
[1747547583437,9.45597953,2505.6,2505.4,13.31877862]
[1747547583634,9.74616909,2505.9,2505.8,0.55]
[1747547583635,6.37401592,2505.9,2505.8,0.55]
[1747547583822,7.08952673,2506.2,2506.1,8.55]
[1747547584023,7.08952673,2506.2,2506.1,28.9873414]
[1747547584214,5.29220946,2506.2,2506.1,28.33837916]
[1747547584636,11.20291688,2507.1,2506.3,13.31734533]
[1747547584637,7.56397979,2506.4,2506.3,13.31734533]
[1747547584802,7.56397979,2506.4,2506.3,29.4463781]
[1747547584803,5.78557979,2506.4,2506.3,29.4463781]
[1747547585007,5.78557979,2506.4,2506.3,42.82846074]
[1747547585333,4.35029392,2506.4,2506.3,42.50709406]
[1747547585536,4.35029392,2506.4,2506.3,43.20620947]
[1747547587041,4.35029392,2506.4,2506.3,27.41209406]
[1747547587445,4.35029392,2506.4,2506.3,42.50509406]
[1747547588123,4.35029392,2506.4,2506.3,27.41209406]
[1747547588319,4.35029392,2506.4,2506.3,42.50309406]
[1747547588825,4.35029392,2506.4,2506.3,27.87988186]
[1747547589032,4.35029392,2506.4,2506.3,42.97088186]
[1747547589226,4.35029392,2506.4,2506.3,27.87988186]
[1747547589437,4.35029392,2506.4,2506.3,42.97088186]
[1747547592032,4.35029392,2506.4,2506.3,42.50309406]
[1747547593035,3.91629392,2506.4,2506.3,43.20220947]
[1747547593235,2.14859392,2506.4,2506.3,43.20220947]
[1747547593564,11.20291688,2507.1,2506.3,43.20220947]
[1747547593855,4.86615339,2506.5,2506.4,13.74995028]
[1747547594058,7.12955045,2506.6,2506.5,12.67292696]
[1747547594258,4.03752965,2506.8,2506.7,12.53930865]
[1747547594553,4.90586747,2507.0,2506.9,12.53899038]
[1747547594757,11.20291688,2507.1,2506.9,12.53899038]
[1747547594758,5.24444289,2507.1,2507.0,12.53883127]
[1747547594953,3.64812999,2507.2,2507.1,12.53867217]
[1747547595154,6.25364266,2507.3,2507.2,12.53851308]
[1747547595456,5.56204266,2507.3,2507.2,28.74558262]
[1747547596122,4.05509566,2507.3,2507.2,28.74558262]
[1747547596723,3.34159566,2507.3,2507.2,28.74558262]
[1747547597048,0.005,2507.4,2507.3,12.538354]
[1747547597244,0.005,2507.4,2507.3,27.59146941]
[1747547598436,0.005,2507.4,2507.3,42.76446941]
[1747547598644,0.005,2507.4,2507.3,42.76346941]
[1747547598845,11.59240122,2507.5,2507.4,13.23731035]
[1747547599241,11.59240122,2507.5,2507.4,11.98819494]
[1747547599536,11.59240122,2507.5,2507.4,12.53819494]
[1747547599728,11.59240122,2507.5,2507.4,28.02327529]
[1747547600528,11.59240122,2507.5,2507.4,28.02027529]
[1747547600728,11.59240122,2507.5,2507.4,28.39602402]
[1747547603067,11.54240122,2507.5,2507.4,28.39602402]
[1747547604233,11.54240122,2507.5,2507.4,13.22202402]
[1747547604435,11.54240122,2507.5,2507.4,28.38602402]
[1747547605566,5.80406293,2507.7,2507.6,14.93387685]
[1747547605729,5.02406293,2507.7,2507.6,26.84019416]
[1747547605935,3.03129271,2507.7,2507.6,21.65424816]
[1747547606255,3.03129271,2507.7,2507.6,29.11112116]
[1747547606633,1.03852249,2507.7,2507.6,39.73019416]
[1747547606831,1.03852249,2507.7,2507.6,29.11012116]
[1747547607249,10.22418556,2507.8,2507.7,13.82496213]
[1747547607449,8.55467848,2507.8,2507.7,14.20271086]
[1747547607657,6.17567848,2507.8,2507.7,23.51472186]
[1747547607859,4.97567848,2507.8,2507.7,23.51472186]
[1747547608060,2.73267848,2507.8,2507.7,23.51472186]
[1747547608261,2.73267848,2507.8,2507.7,14.20271086]
[1747547608466,1.29845452,2507.8,2507.7,43.83946655]
[1747547608964,1.29845452,2507.8,2507.7,44.38946655]
[1747547609167,0.89445452,2507.8,2507.7,43.83946655]
[1747547609529,0.89445452,2507.8,2507.7,43.83346655]
[1747547609730,0.89445452,2507.8,2507.7,44.38346655]
[1747547610360,0.89445452,2507.8,2507.7,35.82946655]
[1747547610557,0.89445452,2507.8,2507.7,28.54546655]
[1747547610863,0.89445452,2507.8,2507.7,43.83246655]
[1747547611062,0.89445452,2507.8,2507.7,44.38246655]
[1747547613158,0.89445452,2507.8,2507.7,44.58746655]
[1747547613474,0.84445452,2507.8,2507.7,44.58746655]
[1747547615083,0.84445452,2507.8,2507.7,10.97546655]
[1747547615270,0.84445452,2507.8,2507.7,33.90746655]
[1747547615649,0.84445452,2507.8,2507.7,25.90746655]
[1747547615847,0.84445452,2507.8,2507.7,18.42546655]
[1747547616043,1.65215452,2507.8,2507.7,25.91346655]
[1747547616272,0.84445452,2507.8,2507.7,33.91346655]
[1747547616473,0.84445452,2507.8,2507.7,34.46346655]
[1747547618460,0.84445452,2507.8,2507.7,35.16258196]
[1747547618863,0.84445452,2507.8,2507.7,35.58678196]
[1747547619081,11.6228008,2507.9,2507.8,12.53755881]
[1747547619393,11.6228008,2507.9,2507.8,28.08555881]
[1747547620773,11.6228008,2507.9,2507.8,34.14555881]
[1747547621486,9.71019717,2507.9,2507.8,34.14555881]
[1747547621785,9.71019717,2507.9,2507.8,34.52330754]
[1747547622785,9.71019717,2507.9,2507.8,34.94750754]
[1747547622970,9.71019717,2507.9,2507.8,45.06750754]
[1747547623158,3.65019717,2507.9,2507.8,45.06750754]
[1747547623545,2.69396201,2507.9,2507.8,45.06750754]
[1747547624000,0.30350335,2507.9,2507.8,45.06750754]
[1747547624463,0.30350335,2507.9,2507.8,45.68603962]
[1747547624665,0.00150335,2507.9,2507.8,48.08203962]
[1747547624860,0.00150335,2507.9,2507.8,48.67016852]
[1747547625092,12.5029699,2508.2,2508.0,15.35744082]
[1747547625269,12.5029699,2508.2,2508.0,26.6841018]
[1747547625475,12.5029699,2508.2,2508.0,41.6359729]
[1747547625682,12.5029699,2508.2,2508.0,42.01372163]
[1747547626162,12.5029699,2508.2,2508.0,42.60185053]
[1747547627197,12.5029699,2508.2,2508.0,39.00318955]
[1747547627496,12.5029699,2508.2,2508.0,39.33603748]
[1747547627907,12.5029699,2508.2,2508.0,39.95456956]
[1747547628998,12.5029699,2508.2,2508.0,24.41056956]
[1747547629199,10.44648924,2508.1,2508.0,39.95056956]
[1747547629502,2.95244713,2508.1,2508.0,45.39203748]
[1747547629701,2.95244713,2508.1,2508.0,30.47056956]
[1747547629906,2.95244713,2508.1,2508.0,45.39303748]
[1747547630902,2.95244713,2508.1,2508.0,46.01156956]
[1747547631694,2.14731358,2508.2,2508.1,14.93308185]
[1747547631883,2.14731358,2508.2,2508.1,16.30864858]
[1747547632287,2.14731358,2508.2,2508.1,16.89677748]
[1747547632499,2.14731358,2508.2,2508.1,18.83661017]
[1747547633307,2.14731358,2508.2,2508.1,34.36561017]
[1747547633798,12.79315946,2508.4,2508.3,15.35696394]
[1747547634110,10.0969593,2509.3,2509.2,6.93133397]
[1747547634315,10.0969593,2509.3,2509.2,41.67329715]
[1747547634670,10.0969593,2509.3,2509.2,36.18946903]
[1747547634988,3.70449621,2509.3,2509.2,39.47781958]
[1747547635190,3.70449621,2509.3,2509.2,23.09894658]
[1747547635366,0.89841955,2509.3,2509.2,18.89785758]
[1747547635566,0.89841955,2509.3,2509.2,29.32394658]
[1747547635768,0.89841955,2509.3,2509.2,29.32794658]
[1747547636069,0.89841955,2509.3,2509.2,28.77794658]
[1747547636270,12.94137051,2509.4,2509.3,11.98517514]
[1747547636502,12.94137051,2509.4,2509.3,26.87417514]
[1747547637182,12.94137051,2509.4,2509.3,42.57517514]
[1747547637378,8.83180681,2509.4,2509.3,27.29837514]
[1747547637578,6.25127745,2509.4,2509.3,53.61644814]
[1747547637771,6.25127745,2509.4,2509.3,44.81052587]
[1747547638204,6.25127745,2509.4,2509.3,44.80952587]
[1747547638701,6.25127745,2509.4,2509.3,46.42951974]
[1747547638702,5.29571291,2509.4,2509.3,46.42951974]
[1747547638912,5.29571291,2509.4,2509.3,30.71751974]
[1747547639080,5.29571291,2509.4,2509.3,38.00831974]
[1747547639287,3.86235326,2509.4,2509.3,38.00831974]
[1747547639485,3.86235326,2509.4,2509.3,22.29331974]
[1747547639680,3.86235326,2509.4,2509.3,38.00731974]
[1747547639885,3.86235326,2509.4,2509.3,44.7650746]
[1747547640591,3.86235326,2509.4,2509.3,29.0510746]
[1747547640774,3.86235326,2509.4,2509.3,28.5010746]
[1747547640976,3.86235326,2509.4,2509.3,44.2080746]
[1747547641575,3.86235326,2509.4,2509.3,44.7580746]
[1747547641776,4.80505326,2509.4,2509.3,20.4914954]
[1747547642010,4.80505326,2509.4,2509.3,36.4194954]
[1747547642211,4.80505326,2509.4,2509.3,44.4194954]
[1747547642384,4.80505326,2509.4,2509.3,28.4914954]
[1747547642573,4.80505326,2509.4,2509.3,36.4224954]
[1747547642780,4.80505326,2509.4,2509.3,44.4224954]
[1747547643191,4.75505326,2509.4,2509.3,44.4224954]
[1747547643679,3.81235326,2509.4,2509.3,44.9724954]
[1747547644705,3.81235326,2509.4,2509.3,44.9614954]
[1747547645206,3.81235326,2509.4,2509.3,44.4094954]
[1747547645414,3.81235326,2509.4,2509.3,44.9594954]
[1747547646207,3.81235326,2509.4,2509.3,37.0064954]
[1747547646406,3.81235326,2509.4,2509.3,28.4914954]
[1747547646730,0.05558322,2509.4,2509.3,44.8346954]
[1747547646881,0.05558322,2509.4,2509.3,59.02551639]
[1747547647083,0.05558322,2509.4,2509.3,55.85576569]
[1747547647286,0.05558322,2509.4,2509.3,54.78953569]
[1747547647792,0.05558322,2509.4,2509.3,57.18553569]
[1747547647982,0.05558322,2509.4,2509.3,51.16958569]
[1747547648586,0.05558322,2509.4,2509.3,30.55538569]
[1747547648786,0.05558322,2509.4,2509.3,46.98040694]
[1747547650014,0.05558322,2509.4,2509.3,46.0754954]
[1747547650218,0.05558322,2509.4,2509.3,46.0704954]
[1747547650518,0.05558322,2509.4,2509.3,52.60248094]
[1747547650707,0.05558322,2509.4,2509.3,51.24876994]
[1747547651615,14.24410726,2509.6,2509.4,12.53501633]
[1747547651616,14.03428457,2509.5,2509.4,12.53501633]
[1747547652117,14.03428457,2509.5,2509.4,30.96762561]
[1747547652315,14.03428457,2509.5,2509.4,23.34437434]
[1747547652534,12.60096971,2509.5,2509.4,23.34437434]
[1747547652827,12.60096971,2509.5,2509.4,13.76237434]
[1747547653033,12.60096971,2509.5,2509.4,30.78837434]
[1747547653231,12.60096971,2509.5,2509.4,31.33837434]
[1747547654317,11.64533061,2509.5,2509.4,31.67103657]
[1747547655218,11.64533061,2509.5,2509.4,14.64503657]
[1747547655626,11.64533061,2509.5,2509.4,31.10303657]
[1747547655821,11.64533061,2509.5,2509.4,23.10203657]
[1747547656635,11.64533061,2509.5,2509.4,31.10203657]
[1747547657804,13.21463061,2509.5,2509.4,6.09503657]
[1747547657999,14.48871484,2509.5,2509.4,6.09503657]
[1747547658205,13.21463061,2509.5,2509.4,22.59103657]
[1747547660924,13.21463061,2509.5,2509.4,22.59803657]
[1747547661123,13.21463061,2509.5,2509.4,22.26537434]
[1747547661537,11.64533061,2509.5,2509.4,22.81537434]
[1747547662303,11.64533061,2509.5,2509.4,28.87537434]
[1747547662940,11.64533061,2509.5,2509.4,19.82237434]
[1747547663138,13.21463061,2509.5,2509.4,19.82237434]
[1747547663340,15.9605044,2509.5,2509.4,5.76237434]
[1747547663549,15.9605044,2509.5,2509.4,1.77735801]
[1747547663710,15.9605044,2509.5,2509.4,2.40145056]
[1747547663912,15.9605044,2509.5,2509.4,6.38646689]
[1747547664137,15.9605044,2509.5,2509.4,2.40145056]
[1747547664335,15.9605044,2509.5,2509.4,0.73485056]
[1747547665210,15.9605044,2509.5,2509.4,0.62409255]
[1747547666448,1.5693,2509.4,2509.3,3.98516639]
[1747547666647,4.87440422,2509.4,2509.3,3.98516639]
[1747547667034,1.5693,2509.4,2509.3,3.98516639]
[1747547667235,1.5693,2509.4,2509.3,11.98516639]
[1747547668445,1.5693,2509.4,2509.1,8.477]
[1747547668621,1.5693,2509.4,2509.1,12.46243952]